Cogmind - Beta 9.2 @@@ ROGUE MODE // 2019.12.15 @ 15:08:48 Player: Fleshy Vegetable Bird Result: Destroyed by YI-UF0 with YI-UF0's Doublenader Performance ------------- Evolutions (0) 0 Regions Visited (2) 400 Robots Destroyed (41) 205 Value Destroyed (581) 581 Prototype IDs (0) 0 Alien Tech Used (0) 0 Bonus (38) 38 TOTAL SCORE: 1224 Bonus ------- High Alert Combat Kills 38 Cogmind --------- Core Integrity 0/250 Matter 274/300 Energy 68/100 System Corruption 21% Temperature Cool (0) Movement Rolling (90) Ox1 Location -10/Mines Parts ------- > --- POWER (1) -------- (None) > --- PROPULSION (2) --- Wheel Wheel > --- UTILITY (2) ------ Large Storage Unit Large Storage Unit > --- WEAPON (2) ------- (None) > --- INVENTORY (16) --- Light Ion Engine Combat Airjet Grenade Launcher Mini Grenade Launcher Mini Grenade Launcher Mini Grenade Launcher Mini Grenade Launcher Heavy Hammer Peak State ------------ > --- POWER ------------ Light Ion Engine > --- PROPULSION ------- Wheel Wheel > --- UTILITY ---------- Large Storage Unit Large Storage Unit > --- WEAPON ----------- EM Pulse Gun Mini Grenade Launcher > --- INVENTORY -------- Wheel Wheel Small Laser Assault Rifle Light Assault Rifle Grenade Launcher Mini Grenade Launcher Mini Grenade Launcher Mini Grenade Launcher Heavy Hammer [Rating: 9] Favorites ----------- Power Light Ion Engine Engine Light Ion Engine Propulsion Wheel Wheel Wheel Utility Large Storage Unit Storage Large Storage Unit Weapon Mini Grenade Launcher Energy Gun Small Laser Ballistic Gun Assault Rifle Launcher Mini Grenade Launcher Build | -11 -10 -10 ------- Run | Scr Mat Min Slots Evolved . | . . . Power . | . . . Propulsion . | . . . Utility . | . . . Weapon . | . . . Parts Attached 22 | 6 4 12 Power 4 | 1 1 2 Engine 4 | 1 1 2 Core . | . . . Reactor . | . . . Propulsion 8 | 2 . 6 Treads . | . . . Leg . | . . . Wheel 8 | 2 . 6 Hover . | . . . Flight . | . . . Utility 3 | 1 2 . Device . | . . . Storage 3 | 1 2 . Processor . | . . . Hackware . | . . . Protection . | . . . Artifact . | . . . Weapon 7 | 2 1 4 Energy Gun 3 | 2 . 1 Energy Cannon . | . . . Ballistic Gun 3 | . . 3 Ballistic Cannon . | . . . Launcher 1 | . 1 . Special Weapon . | . . . Impact Weapon . | . . . Slashing Weapon . | . . . Piercing Weapon . | . . . Special Melee Weapon . | . . . Unidentified Prototypes . | . . . Parts Lost 15 | . 2 13 Power 4 | . 1 3 Propulsion 5 | . . 5 Utility . | . . . Weapon 6 | . 1 5 Highest Loss Streak 5 | . 1 5 Average Slot Usage (%) 87 | . 88 85 Engine 11 | . 14 9 Wheel 26 | . 28 24 Storage 25 | . 22 28 Energy Gun 8 | . 17 . Ballistic Gun 7 | . . 12 Launcher 7 | . 5 8 Naked Turns . | . . . Heaviest Build 40 | 10 38 40 Greatest Support 20 | 20 20 20 Greatest Overweight (x) 3 | . 1 3 Average Overweight (x) . | . . 1 Largest Inventory Capacity 16 | 6 16 16 Average Capacity 13 | 5 12 16 Most Carried 12 | 6 11 12 Average Carried 8 | 3 7 10 Final Capacity 16 | 6 16 16 Final Carried 10 | 6 10 8 Class Distribution -------------------- 97% | Mutant Dominant Class ---------------- Mutant | -10/Materials Mutant | -10/Mines Resources | -11 -10 -10 ----------- Run | Scr Mat Min Matter Collected 635 | 260 30 345 Remotely . | . . . Salvage Created 632 | 161 186 285 Parts 53 | 11 26 16 Haulers Intercepted . | . . . Recyclers Shooed . | . . . Parts Field Recycled . | . . . Retrieved Matter . | . . . Parts Self-Destructed . | . . . Prevented . | . . . Kills | -11 -10 -10 ------- Run | Scr Mat Min Combat Hostiles Destroyed 30 | . 10 20 Guns 7 | . 4 3 AOE 23 | . 6 17 Classes Destroyed 8 | 2 5 1 Worker 3 | . 1 2 Tunneler 3 | 3 . . Recycler 1 | 1 . . Operator 2 | . 2 . Watcher 2 | . 2 . Swarmer 15 | . 9 6 Grunt 7 | . 1 6 Assembled 8 | . . 8 Best Kill Streak 8 | 4 5 8 Combat Bots Only 6 | . 3 6 Max Kills in Single Turn 3 | 2 3 3 Gunslinging . | . . . Exploded 3 | . 3 2 Melee . | . . . Uniques/NPCs Destroyed . | . . . Combat | -11 -10 -10 -------- Run | Scr Mat Min Damage Taken 1349 | . 223 1126 Core 259 | . 40 219 Absorbed by Shields . | . . . Core Remaining (%) 100 | 100 . . Volleys Fired 67 | 5 24 38 Largest 2 | 2 2 2 Hottest 80 | 80 80 60 Shots Fired 107 | 10 41 56 Gun 84 | 10 34 40 Cannon . | . . . Launcher 23 | . 7 16 Special . | . . . Kinetic 38 | . . 38 Thermal 24 | 5 17 2 Explosive 23 | . 7 16 Electromagnetic 22 | 5 17 . Robot Hit Streak 9 | 3 7 9 Robot Miss Streak 5 | 3 5 3 Penetration Max . | . . . Secondary Targets . | . . . Shots Hit Robots 52 | 5 19 28 Core Hits 62 | 5 20 37 Critical Hits . | . . . Critical Kills . | . . . Critical Parts Destroyed . | . . . Melee Attacks . | . . . Impact . | . . . Slashing . | . . . Piercing . | . . . Sneak Attacks . | . . . Combat Hostiles . | . . . Follow-up Attacks . | . . . Damage Inflicted 2336 | 88 711 1537 Guns 474 | 88 172 214 Cannons . | . . . Explosions 1859 | . 539 1320 Melee . | . . . Ramming 3 | . . 3 Kinetic 194 | . . 194 Thermal 237 | 34 91 112 Explosive 1721 | . 493 1228 Electromagnetic 181 | 54 127 . Impact . | . . . Slashing . | . . . Piercing . | . . . Highest Corruption 21 | . . 21 Average Corruption 13 | . . 13 Corruption Purged . | . . . Effects 14 | . . 14 Message Errors 2 | . . 2 Energy Discharges 1 | . . 1 Parts Rejected 1 | . . 1 Data Loss (minor) 1 | . . 1 Misdirections 3 | . . 3 Targeting Errors 6 | . . 6 Overload Shots . | . . . Overflow Damage 125 | . 39 86 Projectiles . | . . . Explosions 125 | . 39 86 Melee . | . . . Knockbacks . | . . . Impact . | . . . Kinetic . | . . . Secondary . | . . . Self-Inflicted Damage 71 | . 14 57 Shots 4 | . 1 3 Rammed 1 | . . 1 Targets Rammed 1 | . . 1 Kicked . | . . . Crushed . | . . . Highest Temperature 115 | 54 115 20 Average Temperature 49 | 22 59 12 Received Heat Transfer 96 | . 30 66 Siege Activations . | . . . Robots Corrupted . | . . . Combat Hostiles . | . . . Parts Fried . | . . . Impact Corruptions . | . . . Robots Melted . | . . . Combat Hostiles . | . . . Parts Melted . | . . . Heat Transferred 425 | 75 150 200 Parts Sabotaged . | . . . Parts Stolen . | . . . Parts Stripped . | . . . Power Chain Reactions 1 | . 1 . Missiles Intercepted . | . . . Alert | -11 -10 -10 ------- Run | Scr Mat Min Peak Influence 465 | 20 387 465 Average Influence 270 | 5 184 383 Maximum Alert Level 2 | . 1 2 Low Security (%) 34 | 100 60 2 Level 1 41 | . 39 49 Level 2 23 | . . 47 Level 3 . | . . . Level 4 . | . . . Level 5 . | . . . High Security . | . . . Max Security . | . . . Squads Dispatched 1 | . 1 . Investigation 1 | . 1 . Extermination . | . . . Reinforcement . | . . . Assault . | . . . Garrison . | . . . Intercept . | . . . Construction Impeded . | . . . Haulers Reinforced . | . . . Stealth | -11 -10 -10 --------- Run | Scr Mat Min Distress Signals 2 | . 2 . Communications Jammed . | . . . Distress Signals . | . . . Times Spotted 36 | . 16 20 Peak Tracking Total 9 | . 5 9 Tactical Retreats 3 | . . 3 Traps | -11 -10 -10 ------- Run | Scr Mat Min Traps Triggered 1 | . 1 . Indirectly . | . . . Trap Hack Attempts . | . . . Triggered . | . . . Disarmed . | . . . Reprogrammed . | . . . Reused . | . . . Traps Extracted . | . . . Installed . | . . . Triggered . | . . . Machines | -11 -10 -10 ---------- Run | Scr Mat Min Machines Disabled 6 | . 4 2 Max in Single Turn 2 | . 2 1 Machines Sabotaged . | . . . Garrisons Compromised . | . . . Overloaded Fab Kills . | . . . Fab Network Shutdowns . | . . . Hacking | -11 -10 -10 --------- Run | Scr Mat Min Machines Accessed 2 | . 2 . Terminals 2 | . 2 . Fabricators . | . . . Repair Stations . | . . . Recycling Units . | . . . Scanalyzers . | . . . Garrison Access . | . . . Total Hacks 4 | . 4 . Successful 2 | . 2 . Failed 2 | . 2 . Catastrophic . | . . . Database Lockouts . | . . . Manual 4 | . 4 . Terminals 4 | . 4 . Fabricators . | . . . Repair Stations . | . . . Recycling Units . | . . . Scanalyzers . | . . . Garrison Access . | . . . Terminal Hacks 1 | . 1 . Branch Access Points 1 | . 1 . Fabricator Hacks . | . . . Repair Station Hacks . | . . . Recycling Unit Hacks . | . . . Scanalyzer . | . . . Garrison Access Hacks . | . . . Unauthorized Hacks 2 | . 2 . Terminals 1 | . 1 . Botnet 1 | . 1 . Fabricators . | . . . Repair Stations . | . . . Recycling Units . | . . . Scanalyzers . | . . . Garrison Access . | . . . Data Cores Recovered 2 | . 2 . Used . | . . . Hacking Detections 2 | . 2 . Full Trace Events . | . . . Feedback Events . | . . . Feedback Blocked . | . . . Robot Schematics Acquired . | . . . Robots Built . | . . . Matter . | . . . Time . | . . . Total Robot Build Rating . | . . . Part Schematics Acquired . | . . . Parts Built . | . . . Matter . | . . . Time . | . . . Total Part Build Rating . | . . . Parts Repaired . | . . . Time . | . . . Parts Recycled . | . . . Recycled Matter . | . . . Retrieved Matter . | . . . Retrieved Components . | . . . Parts Scanalyzed . | . . . Part Schematics Acquired . | . . . Parts Damaged . | . . . Bothacking | -11 -10 -10 ------------ Run | Scr Mat Min Used RIF Installer . | . . . Robots Hacked . | . . . Non-combat . | . . . Combat . | . . . Robot Hacks Applied . | . . . Relay Couplers Released . | . . . Robots Rewired . | . . . Allies Hacked . | . . . Hacks Repelled . | . . . Allies | -11 -10 -10 -------- Run | Scr Mat Min Total Allies . | . . . Largest Group . | . . . Highest-Rated Group . | . . . Highest-Rated Ally . | . . . Total Orders . | . . . Ally Attacks . | . . . Total Damage . | . . . Kills . | . . . Allies Corrupted . | . . . Allies Melted . | . . . Intel | -11 -10 -10 ------- Run | Scr Mat Min Robot Analysis Total . | . . . Derelict Logs Recovered . | . . . Drone Launches . | . . . Drone Recoveries . | . . . Exploration | -11 -10 -10 ------------- Run | Scr Mat Min Turns Passed 822 | 65 345 412 Spaces Moved 634 | 44 300 290 Core 12 | 12 . . Treads . | . . . Legs . | . . . Wheels 622 | 32 300 290 Hover . | . . . Flight . | . . . Fastest Speed 50 | 50 80 90 Average Speed 87 | 71 86 90 Slowest Speed 110 | 80 90 110 Overloaded Moves . | . . . Propulsion Burnouts . | . . . Robots Hopped . | . . . Cave-ins Triggered 1 | . . 1 Exploration Rate (%) 42 | 3 76 47 Regions Visited 2 Branch Regions 1 Pre-discovered Areas . | . . . Known Exits Taken 1 | . 1 . Unknown Exits Taken 1 | 1 . . Scrap Searched . | . . . Spaces Dug . | . . . Terrain Destroyed 199 | . 35 164 Melee . | . . . Projectile . | . . . AOE 199 | . 35 164 Actions | -11 -10 -10 --------- Run | Scr Mat Min Total 802 | 68 346 388 Wait 38 | . 1 37 Move 632 | 43 299 290 Hop . | . . . Pick Up 35 | 13 12 10 Fast Attach . | . . . Attach 20 | 6 2 12 Detach . | . . . Swap 2 | . 2 . Drop 7 | 1 6 . Fire 67 | 5 24 38 Melee . | . . . Ram 1 | . . 1 Kick . | . . . Crush . | . . . Escape Stasis . | . . . Rewire . | . . . Trap . | . . . Miscellaneous . | . . . Route ------- -11/Scrapyard -10/Materials (discovered 3 exits: [*Mat x2] / *Min) -10/Mines (discovered 1 exit: [*Mat]) History --------- Turn | Location | Event 21 | -11/Scrapyard | Discovered new exit (range 15) 66 | -11/Scrapyard | Entered Materials 181 | -10/Materials | Discovered new exit (range 15) 278 | -10/Materials | Discovered new exit (range 16) 300 | -10/Materials | Identified exit to Mines 311 | -10/Materials | Build established: Mutant 411 | -10/Materials | Entered Mines 453 | -10/Mines | Assembled infested the area 458 | -10/Mines | Assisted by a Guerilla fighting off Assembled 564 | -10/Mines | Discovered new exit (range 5) 734 | -10/Mines | Crushed by falling debris 734 | -10/Mines | System corruption reached 10% 775 | -10/Mines | Lost 5 parts (1p2n2w) 804 | -10/Mines | Core integrity fell below 50% 822 | -10/Mines | Core integrity fell below 20% 823 | -10/Mines | Destroyed by YI-UF0 with YI-UF0's Doublenader Last Messages --------------- 00765_ System corrupted: Energy discharge (-50). 00777_ Acquired 5 matter. 00779_ Acquired 12 matter. 00784_ Acquired Wheel. 00787_ System corrupted: Component data lost. 00797_ Wheel destroyed. 00797_ Lgt. Ion Engine destroyed. 00800_ The unstable cave ceiling collapses. 00801_ System corrupted: Lgt. Assault Rifle targeting data glitched. 00802_ The unstable cave ceiling collapses. 00803_ System corrupted: Lgt. Assault Rifle targeting data glitched. 00804_ The unstable cave ceiling collapses. 00806_ System corrupted: Lgt. Assault Rifle targeting data glitched. 00807_ System corrupted: Wheel rejected. 00809_ The unstable cave ceiling collapses. 00811_ System corrupted: Lgt. Assault Rifle targeting data glitched. 00811_ Lgt. Assault Rifle destroyed. 00813_ The unstable cave ceiling collapses. 00819_ Lgt. Assault Rifle destroyed. 00820_ The unstable cave ceiling collapses. Map ----- +----------------------------------------------------+ | ###????????????????????????????????????????? | | ####??????????????????????????????????????????? | | ##?????????????????????????????????????????????? | | ######???????????????????????????????????????????? | | ?## ##??????????????????????????????????????????? | | ## ##?????????????????????????????????????????? | | # #?????????????????????????????????????????? | | # #?????????????????????????????????????????? | | #?????????????????????????????????????????? | | # ##?????????????????????????????????????????? | | #### ##??????????????????????????????????????????? | | ##?# #??????????????????????? ???????????????????? | | #?# #?????????????????????? ## ????????????????? | | #??# #?????????????????????? ???????????????? | | #### ###???????????????????? ???????????????? | | ## # #???????????????????# ????????????????? | | #### # #?????????????????## ?????????????????? | | ###???????????????## #?????????????????? | | #### # #??????????????## g%#?????????????????? | | ?### ###?????????????## #?????????????????? | | ??## ##??????????????? !% #?????????????????? | | ???# #???????????????## ! #?????????????????? | | ???# #?????####?????## ##?????????????????? | | ???# #?????#""####### #??????????????????? | | #### ###??## ## #???????????????????? | | # #!#=##?# " ## @ ##???????????????????? | | # #% ### ## #???????????????????? | | %#= * ## # #???????????????????? | | # !## ## ### # #???????????????????? | | # # ## ### #???????????????????? | | # % #### # #???????????????????? | | # # # # # #???????????????????? | | # # ### %! ####???????????????????? | | ## ## ! ## a #??????????????????????? | | # ##### ##### ###??????????????????????? | | #???## #??##% #????????????????????????? | | ##????### ##?## #????????????????????????? | | ##??????######## % ##??????????????????????? | | ##???###???# = =#####??????????????????? | | ##### ##### == ##??#??????????????? | | ## # # *% #? ######?????????? | | # ## # #?????????? | | # # ### #??# #?????????? | | ## * #?## #??# #?????????? | | ?## ## #?# ######### ##????????? | | ??## ### #####?## ## # #????# ##???????? | | ???####?# #?????## # ####????# #???????? | | ????????### ####??????### #???????+ #?####??? | | ??????????# ###??????????# #???????+ #?## ###? | | ??????????# #??????????# #???????# ### ## | +----------------------------------------------------+ Best States ------------- Heat Dissipation 25 Energy Generation 10 Energy Capacity 250 Matter Stores 300 Matter Capacity 300 Sight Range 16 Terrain Scan Density 10 Evasion (%) 44 Item Schematics ----------------- None Robot Schematics ------------------ None Fabricated ------------ Nothing Alien Tech Used ----------------- None Achievements -------------- None Challenges ------------ None Game ------ Seed DimensionalNovaWand Manual? 0 Play Time 00:08:15 Cumulative 246.3 hours Start 2019.12.15 @ 15:01:14 End 2019.12.15 @ 15:08:48 Sessions 1 Manual Loads 0 Difficulty Rogue Special Mode None Game No. 313 Rogue 313 Adventurer 0 Explorer 0 Win Type - Total 2 Types 1/0/0/1/0/0/0 Lore% 59 Gallery% 81 Achievement% 57 Wizard Run 0 Options --------- ASCII 0 Keyboard 0 Movement Numpad Keybinds 0 Fullscreen 1 Font 16/Terminus Map View 75x55 Tactical HUD 1 Map Filters NONE Filters NONE Steam 1 RUN: 59e73347-870e-470e-9e91-a52a6fe7b9f4